Cogmind - Beta 16 @@@ ROGUE MODE // 2026.01.11 @ 19:40:20 Player: beans Result: Destroyed by DAS Turret with DAS Cannon Performance ------------- Evolutions (1) 500 Regions Visited (4) 800 Robots Destroyed (28) 140 Value Destroyed (491) 491 Prototype IDs (23) 460 Alien Tech Used (0) 0 Bonus (300) 300 TOTAL SCORE: 2691 Bonus ------- Aligned with FarCom 300 Cogmind --------- Core Integrity 0/400 Matter 295/300 Energy 71/100 System Corruption 0% Temperature Cool (0) Movement Core (700) Ox13 Location -9/Exiles Parts ------- > --- POWER (1) -------- (None) > --- PROPULSION (2) --- (None) > --- UTILITY (3) ------ High-capacity Storage Unit > --- WEAPON (3) ------- (None) > --- INVENTORY (20) --- Cooled Ion Engine Xenon Bombardment Thruster Powered Armor Light Assault Rifle Light Assault Rifle Light Assault Rifle XL Autogun Array Rocket Launcher Peak State ------------ > --- POWER ------------ Improved Deuterium Engine > --- PROPULSION ------- Light Treads Light Treads > --- UTILITY ---------- High-capacity Storage Unit Core Shielding Light Armor Plating > --- WEAPON ----------- Heavy Assault Rifle Heavy Assault Rifle Shotgun > --- INVENTORY -------- Cooled Ion Engine Light Treads Xenon Bombardment Thruster Powered Armor Light Assault Rifle Light Assault Rifle Light Assault Rifle XL Autogun Array Improved Light Cannon Rocket Launcher Heavy Missile Launcher [Rating: 20] Favorites ----------- Power Improved Deuterium Engine Engine Improved Deuterium Engine Propulsion Light Treads Treads Light Treads Utility Core Shielding Device Matter Filter Storage High-capacity Storage Unit Protection Core Shielding Weapon Light Assault Rifle Energy Gun Small Laser Ballistic Gun Light Assault Rifle Ballistic Cannon Improved Light Cannon Launcher Rocket Launcher Build | -11 -10 -9 -9 -9 ------- Run | Yrd Mat Mat Min Exi Slots Evolved 2 | . . 2 . . Power . | . . . . . Propulsion . | . . . . . Utility 1 | . . 1 . . Weapon 1 | . . 1 . . Parts Attached 28 | 6 3 3 8 8 Power 3 | 1 1 . 1 . Engine 3 | 1 1 . 1 . Core . | . . . . . Reactor . | . . . . . Propulsion 5 | 2 . . 2 1 Treads 5 | 2 . . 2 1 Leg . | . . . . . Wheel . | . . . . . Hover . | . . . . . Flight . | . . . . . Utility 6 | 1 1 . 2 2 Device 1 | . . . 1 . Storage 2 | 1 . . 1 . Processor . | . . . . . Hackware . | . . . . . Protection 3 | . 1 . . 2 Artifact . | . . . . . Weapon 14 | 2 1 3 3 5 Energy Gun 3 | 2 . 1 . . Energy Cannon . | . . . . . Ballistic Gun 7 | . . 2 2 3 Ballistic Cannon 1 | . . . . 1 Launcher 3 | . 1 . 1 1 Special Weapon . | . . . . . Impact Weapon . | . . . . . Slashing Weapon . | . . . . . Piercing Weapon . | . . . . . Special Melee Weapon . | . . . . . Unidentified Prototypes . | . . . . . Parts Lost 21 | . 3 1 6 11 Power 3 | . 1 . 1 1 Propulsion 5 | . . . 2 3 Utility 3 | . . . 1 2 Weapon 10 | . 2 1 2 5 Highest Loss Streak 7 | . 3 1 3 7 To Critical Strikes 3 | . . . . 3 Average Backups 9 | 1 1 1 10 11 Power . | 1 . . 1 1 Propulsion 1 | . . . 2 1 Utility 1 | . . . 1 1 Weapon 5 | . . 1 5 7 Tool/Special . | . . . . . Unused Backups 5 | . . . 2 3 Power 1 | . . . . 1 Propulsion 2 | . . . 1 1 Utility . | . . . . . Weapon 2 | . . . 1 1 Tool/Special . | . . . . . Average Slot Usage (%) 73 | . 81 76 74 66 Engine 10 | . 14 11 10 7 Treads 20 | . 28 22 20 18 Device 2 | . . . 3 . Storage 11 | . 14 11 11 11 Protection 11 | . 4 11 11 14 Energy Gun 4 | . 13 9 4 . Ballistic Gun 9 | . . 11 9 10 Launcher 3 | . 7 . 2 2 Peak Build Rating 20 | 6 6 8 19 20 Average Rating 12 | 4 5 6 12 14 On Entrance 6 | . 6 6 8 12 Avg Prop Armor Cover (%) . | . . . . . Naked Turns . | . . . . . Heaviest Build 63 | 11 12 12 58 63 Greatest Support 40 | 40 40 40 40 40 Greatest Overweight (x) 13 | . . . 2 13 Average Overweight (x) . | . . . . 1 Largest Inventory Capacity 20 | 8 8 8 20 20 Average Capacity 16 | 6 8 8 18 20 Most Carried 18 | 5 2 6 13 18 Average Carried 10 | 1 1 1 10 13 Final Capacity 20 | 8 8 8 20 20 Final Carried 13 | 1 1 6 13 11 Class Distribution -------------------- 62% | Mutant 23% | Scavenger-Tank 13% | Tank Dominant Class ---------------- Mutant | -10/Materials Tank | -9/Materials Mutant | -9/Mines Mutant | -9/Exiles Resources | -11 -10 -9 -9 -9 ----------- Run | Yrd Mat Mat Min Exi Matter Collected 861 | 87 163 168 111 332 Remotely . | . . . . . Salvage Created 630 | . 213 257 109 51 Parts 58 | . 14 26 18 . Haulers Intercepted 1 | . . 1 . . Recyclers Shooed 3 | . . 2 1 . Parts Field Recycled . | . . . . . Retrieved Matter . | . . . . . Parts Self-Destructed . | . . . . . Prevented . | . . . . . Parts Restored . | . . . . . Kills | -11 -10 -9 -9 -9 ------- Run | Yrd Mat Mat Min Exi Combat Hostiles Destroyed 28 | . 8 5 7 8 Guns 11 | . 3 3 4 1 AOE 17 | . 5 2 3 7 Classes Destroyed 9 | . 4 3 1 1 Worker 3 | . 1 . 2 . Builder 2 | . 1 1 . . Hauler 1 | . . 1 . . Recycler 1 | . . 1 . . Swarmer 12 | . 3 3 6 . Grunt 5 | . 5 . . . Sentry 2 | . . 2 . . Demolisher 1 | . . . 1 . Assembled 7 | . . . . 7 Best Kill Streak 7 | . 5 3 3 7 Combat Bots Only 7 | . 3 3 3 7 Max Kills in Single Turn 3 | . 3 2 3 3 Gunslinging . | . . . . . Exploded 3 | . 2 2 3 3 Melee . | . . . . . Uniques/NPCs Destroyed 1 | . . . . 1 8R-AWN (-9/Exiles) Combat | -11 -10 -9 -9 -9 -------- Run | Yrd Mat Mat Min Exi Hostile Shots Fired 182 | . 58 23 32 69 Missed 48 | . 13 8 7 20 Hits 134 | . 45 15 25 49 Projectile 134 | . 45 15 25 49 AOE 10 | . . . 10 . Critical Strikes 15 | . . 2 . 13 Damage Taken 2564 | . 485 237 555 1287 Core 506 | . 100 34 98 274 Absorbed by Shields . | . . . . . Redirected to Shielding 52 | . 2 7 21 22 Core Remaining (%) 80 | 100 60 . . . Volleys Fired 93 | . 25 23 14 31 Largest 3 | . 2 3 3 3 Hottest 90 | . 90 80 80 69 Shots Fired 208 | . 42 53 40 73 Gun 190 | . 36 52 39 63 Cannon 4 | . . . . 4 Launcher 14 | . 6 1 1 6 Special . | . . . . . Kinetic 126 | . . 30 29 67 Thermal 68 | . 36 22 10 . Explosive 14 | . 6 1 1 6 Electromagnetic . | . . . . . Robot Hit Streak 14 | . 9 10 7 14 Robot Miss Streak 4 | . 4 3 4 3 Penetration Max . | . . . . . Secondary Targets 3 | . 1 . 2 . Max Gunslinging Chain 1 | . 1 . 1 . Shots Hit Robots 128 | . 24 31 22 51 Core Hits 71 | . 16 15 12 28 Critical Kills . | . . . . . Critical Parts Destroyed . | . . . . . Critical Strikes . | . . . . . Melee Attacks . | . . . . . Impact . | . . . . . Slashing . | . . . . . Piercing . | . . . . . Sneak Attacks . | . . . . . Combat Hostiles . | . . . . . Follow-up Attacks . | . . . . . Damage Inflicted 2918 | . 773 383 415 1347 Guns 1492 | . 273 287 258 674 Cannons 63 | . . . . 63 Explosions 1363 | . 500 96 157 610 Melee . | . . . . . Ramming . | . . . . . Kinetic 1022 | . . 117 168 737 Thermal 533 | . 273 170 90 . Explosive 1363 | . 500 96 157 610 Electromagnetic . | . . . . . Impact . | . . . . . Slashing . | . . . . . Piercing . | . . . . . Highest Corruption . | . . . . . Average Corruption . | . . . . . Corruption Purged . | . . . . . Corruption Blocked . | . . . . . Overload Shots . | . . . . . Overflow Damage 38 | . 14 13 . 11 Projectiles . | . . . . . Explosions 38 | . 14 13 . 11 Melee . | . . . . . Knockbacks 2 | . . . . 2 Impact . | . . . . . Kinetic 2 | . . . . 2 Secondary . | . . . . . Self-Inflicted Damage 59 | . 19 40 . . Shots 2 | . 1 1 . . Rammed . | . . . . . Targets Rammed . | . . . . . Kicked . | . . . . . Crushed . | . . . . . Highest Temperature 468 | . 468 128 70 87 Average Temperature 105 | . 217 42 27 29 Received Heat Transfer 279 | . 198 63 . 18 Effects 4 | . 4 . . . Shutdowns 2 | . 2 . . . Interference 1 | . 1 . . . Damage (minor) 1 | . 1 . . . Siege Activations . | . . . . . Martial Activations . | . . . . . Shielding Activations . | . . . . . Robots Disrupted . | . . . . . Combat Hostiles . | . . . . . Robots Corrupted . | . . . . . Combat Hostiles . | . . . . . Parts Fried . | . . . . . Impact Corruptions . | . . . . . Robots Melted . | . . . . . Combat Hostiles . | . . . . . Parts Melted . | . . . . . Heat Transferred 1294 | . 719 375 200 . Parts Sabotaged . | . . . . . Parts Stolen . | . . . . . Parts Stripped . | . . . . . Power Chain Reactions . | . . . . . Alert | -11 -10 -9 -9 -9 ------- Run | Yrd Mat Mat Min Exi Maximum Alert Level . | . . . . . Low Security (%) 100 | 100 100 100 100 . Level 1 . | . . . . . Level 2 . | . . . . . Level 3 . | . . . . . Level 4 . | . . . . . Level 5 . | . . . . . High Security . | . . . . . Max Security . | . . . . . Peak Influence 116 | . 116 108 102 . Initial 40 | . . 40 28 . Average 26 | . 54 73 18 . Influence Increases 587 | . 220 155 212 . Destroy 0b10 Robot/C 400 | . 160 100 140 . Destroy 0b10 Robot/NC 35 | . 10 15 10 . Destroy Leader 92 | . 30 32 30 . Allied During Kill 11 | . . . 11 . Successful Hack 4 | . 4 . . . Disable Machine 15 | . . . 15 . Destroy Structure 30 | . 16 8 6 . Influence Decreases 587 | . 124 176 270 17 Entered New Map 120 | . . 56 47 17 Time Decay 397 | . 94 110 193 . Lost Part 70 | . 30 10 30 . Squads Dispatched . | . . . . . Investigation . | . . . . . Extermination . | . . . . . Reinforcement . | . . . . . Assault . | . . . . . Garrison . | . . . . . Intercept . | . . . . . Searches Triggered . | . . . . . Construction Impeded . | . . . . . Haulers Reinforced . | . . . . . Active Scanning Responses . | . . . . . Cargo Convoy Interrupts . | . . . . . Stealth | -11 -10 -9 -9 -9 --------- Run | Yrd Mat Mat Min Exi Distress Signals 4 | . 3 . 1 . Communications Jammed . | . . . . . Distress Signals . | . . . . . Times Spotted 33 | . 11 9 8 5 Peak Tracking Total 9 | . 5 4 3 9 Tactical Retreats 1 | . . . . 1 Traps | -11 -10 -9 -9 -9 ------- Run | Yrd Mat Mat Min Exi Traps Triggered . | . . . . . Indirectly . | . . . . . Trap Hack Attempts . | . . . . . Triggered . | . . . . . Disarmed . | . . . . . Reprogrammed . | . . . . . Reused . | . . . . . Traps Extracted . | . . . . . Installed . | . . . . . Triggered . | . . . . . Machines | -11 -10 -9 -9 -9 ---------- Run | Yrd Mat Mat Min Exi Machines Disabled 7 | . . . 1 6 Max in Single Turn 2 | . . . 1 2 Machines Repaired . | . . . . . Machines Dismantled . | . . . . . Machines Sabotaged . | . . . . . Overloaded Fab Kills . | . . . . . Hacking | -11 -10 -9 -9 -9 --------- Run | Yrd Mat Mat Min Exi Machines Accessed 3 | . 1 . 1 1 Terminals 1 | . 1 . . . Fabricators . | . . . . . Repair Stations . | . . . . . Recycling Units . | . . . . . Scanalyzers . | . . . . . Garrison Access . | . . . . . Total Hacks 3 | . 1 . 1 1 Successful 3 | . 1 . 1 1 Failed . | . . . . . Catastrophic . | . . . . . Database Lockouts . | . . . . . Manual 1 | . . . . 1 Terminals 1 | . 1 . . . Fabricators . | . . . . . Repair Stations . | . . . . . Recycling Units . | . . . . . Scanalyzers . | . . . . . Garrison Access . | . . . . . Terminal Hacks 3 | . 1 . 1 1 Open Door 1 | . . . 1 . Dispatch Records 1 | . 1 . . . Proto ID Catalog 1 | . . . . 1 Fabricator Hacks . | . . . . . Repair Station Hacks . | . . . . . Recycling Unit Hacks . | . . . . . Scanalyzer . | . . . . . Garrison Access Hacks . | . . . . . Unauthorized Hacks . | . . . . . Terminals . | . . . . . Fabricators . | . . . . . Repair Stations . | . . . . . Recycling Units . | . . . . . Scanalyzers . | . . . . . Garrison Access . | . . . . . Data Cores Recovered . | . . . . . Used . | . . . . . Hacking Detections . | . . . . . Full Trace Events . | . . . . . Feedback Events . | . . . . . Feedback Blocked . | . . . . . Robot Schematics Acquired . | . . . . . Robots Built . | . . . . . Authchips . | . . . . . Time . | . . . . . Total Robot Build Rating . | . . . . . Part Schematics Acquired . | . . . . . Parts Built . | . . . . . Authchips . | . . . . . Time . | . . . . . Total Part Build Rating . | . . . . . Part Studies Acquired . | . . . . . Parts Repaired . | . . . . . Time . | . . . . . Parts Recycled . | . . . . . Recycled Matter . | . . . . . Retrieved Matter . | . . . . . Retrieved Components . | . . . . . Parts Scanalyzed . | . . . . . Part Schematics Acquired . | . . . . . Parts Damaged . | . . . . . Bothacking | -11 -10 -9 -9 -9 ------------ Run | Yrd Mat Mat Min Exi Used RIF Installer . | . . . . . Robots Hacked . | . . . . . Non-combat . | . . . . . Combat . | . . . . . Robot Hacks Applied . | . . . . . Relay Couplers Released . | . . . . . Fabnet Peak Effective % . | . . . . . Robots Rewired . | . . . . . Allies Hacked . | . . . . . Hacks Repelled . | . . . . . Allies | -11 -10 -9 -9 -9 -------- Run | Yrd Mat Mat Min Exi Total Allies 3 | . . . 3 . Largest Group 3 | . . . 3 3 Highest-Rated Group 40 | . . . 40 40 Highest-Rated Ally 16 | . . . 16 16 Total Orders 1 | . . . . 1 STAY 1 | . . . . 1 Ally Attacks 11 | . . . . 11 Total Damage 43 | . . . . 43 Kills . | . . . . . Allies Corrupted . | . . . . . Allies Melted . | . . . . . Intel | -11 -10 -9 -9 -9 ------- Run | Yrd Mat Mat Min Exi Active Infowar (turns) . | . . . . . Robot Analysis Total . | . . . . . Derelict Logs Recovered 2 | . . . 2 . Drone Launches . | . . . . . Drone Recoveries . | . . . . . Exploration | -11 -10 -9 -9 -9 ------------- Run | Yrd Mat Mat Min Exi Turns Passed 3436 | 64 256 224 1966 926 Spaces Moved 1402 | 46 115 95 841 305 Core 82 | 19 . . 61 2 Treads 1320 | 27 115 95 780 303 Legs . | . . . . . Wheels . | . . . . . Hover . | . . . . . Flight . | . . . . . Fastest Speed 50 | 50 160 160 150 240 Average Speed 217 | 114 160 160 222 259 Slowest Speed 700 | 160 160 160 240 700 Overloaded Moves . | . . . . . Propulsion Burnouts . | . . . . . Robots Hopped . | . . . . . Potential Cave-ins . | . . . . . Cave-ins Triggered . | . . . . . Exploration Rate (%) 39 | 4 26 10 100 59 Regions Visited 4 Branch Regions 2 Pre-discovered Areas 1 | . . . 1 . Known Exits Taken . | . . . . . Unknown Exits Taken 4 | 1 1 1 1 . Scrap Searched 1 | . . . 1 . Spaces Dug . | . . . . . Terrain Destroyed 74 | . 14 7 6 47 Melee . | . . . . . Projectile . | . . . . . AOE 74 | . 14 7 6 47 Terrain Rammed . | . . . . . Walls Destroyed . | . . . . . Machines Disabled . | . . . . . Actions | -11 -10 -9 -9 -9 --------- Run | Yrd Mat Mat Min Exi Total 1642 | 57 145 131 916 393 Wait 74 | . . . 35 39 Move 1398 | 45 114 94 840 305 Hop . | . . . . . Pick Up 30 | 6 3 8 12 1 Fast Attach 3 | 1 . . 2 . Attach 28 | 5 3 4 5 11 Detach 9 | . . 1 3 5 Swap 3 | . . 1 1 1 Drop 4 | . . . 4 . Fire 93 | . 25 23 14 31 Melee . | . . . . . Ram . | . . . . . Kick . | . . . . . Crush . | . . . . . Escape Stasis . | . . . . . Rewire . | . . . . . Trap . | . . . . . Miscellaneous . | . . . . . Route ------- -11/Scrapyard -10/Materials -9/Materials -9/Mines (discovered 3 exits: [*Mat x2] / *Exi) -9/Exiles History --------- Turn | Location | Event 33 | -11/Scrapyard | Discovered new exit (range 15) 65 | -11/Scrapyard | Entered Materials 217 | -10/Materials | Lost 3 parts (1p2w) 218 | -10/Materials | Discovered new exit (range 15) 302 | -10/Materials | Build established: Mutant 321 | -10/Materials | Entered another Materials area 321 | -9/Materials | Evolved 2 slots: Utility x1, Weapon x1 399 | -9/Materials | Discovered new exit (range 16) 545 | -9/Materials | Entered Mines 585 | -9/Mines | Discovered new exit (range 13) 587 | -9/Mines | Lost 3 parts (1p2n) 647 | -9/Mines | Met a Derelict who couldn't figure out how to use a Trap Extractor 655 | -9/Mines | Found Powered Armor 714 | -9/Mines | Received a Rocket Launcher from a helpful Derelict 718 | -9/Mines | Discovered new exit (range 8) 968 | -9/Mines | Build established: Scavenger-Tank 988 | -9/Mines | Learned 2 Materials zone layouts 1076 | -9/Mines | Assembled infested the area 1196 | -9/Mines | Learned location of Storage (-8) 1383 | -9/Mines | Lost 3 parts (1u2w) 1437 | -9/Mines | Assisted by bots powering up and referring to "LRC-V3" 1704 | -9/Mines | Build established: Mutant 2491 | -9/Mines | Deemed a non-threat by the Exiles lab entrance 2491 | -9/Mines | Discovered new exit (range 5) 2511 | -9/Mines | Entered Exiles 2511 | -9/Exiles | Accompanied by 3 allies 2574 | -9/Exiles | Met 8R-AWN 2612 | -9/Exiles | Met EX-HEX 2703 | -9/Exiles | Met EX-BIN 2732 | -9/Exiles | Aligned with FarCom system 2735 | -9/Exiles | Given EX-Vault access code 2790 | -9/Exiles | Opened EX-Vault 2802 | -9/Exiles | Found XL Autogun Array 2851 | -9/Exiles | Warned to stay clear of 0b10 Research branches 2935 | -9/Exiles | Met EX-DEC 3054 | -9/Exiles | Attacked by the Exiles 3111 | -9/Exiles | Destroyed 7 combat bots 3220 | -9/Exiles | Destroyed 8R-AWN 3228 | -9/Exiles | Lost 7 parts (1p2n1u3w) 3428 | -9/Exiles | Core integrity fell below 50% 3436 | -9/Exiles | Core integrity fell below 20% 3437 | -9/Exiles | Destroyed by DAS Turret with DAS Cannon Last Messages --------------- Penetrated by HV Slug. Critical hit (Destroy). Penetrated by HV Slug. HV Slug penetrates Wall. Penetrated by HV Slug. HV Slug penetrates Wall. HV Slug penetrates Earth. 8R-AWN destroyed. Acquired 45 matter. Acquired 3 matter. Acquired 2 matter. Acquired 3 matter. Acquired 60 matter. Extracted 170 matter. The unstable cave ceiling collapses. Acquired 1 matter. Shotgun destroyed. Hvy. Missile Launcher destroyed. Lgt. Treads destroyed. Core Shielding destroyed. Map ----- +----------------------------------------------------+ | ??????????????????????????????????"""" ## #?? | | ?????????????????????????????????#""X" #?? | | ?????????????????????????????????#" #?? | | ?????????????????????????????????#" ## #?? | | ?????????????????????????????????#""""""?# #?# | | ?????????????????????????????????##"###??# #?# | | ?????????????????????????????????????????# #?# | | ?????????????????????????????????????????# #?# | | ????????????????????????????????????????## ### | | ????????#######?????????????????????????#" | | #???????#!!! "#?????????????????????????#" | | "#??????# "#?????????????????????????#" | | ??????# "#?????????????????????????#" | | #????## "#?????????????#???????????#" | | #####" ""#???????????? """????????#" | | ##" ""#????????????" """#???????## | | #"" #??????????????" ?????????# | | #??????????????" ?????????#" | | # ######?????????" "#????????#" | | ### #???????? ""?????????#" "" | | ##" # ########??" "?????????##" ### | | # # #??# #????????##"" #?? | | ** ### # ###### ###?######"" #?? | | = ! #?## # ##X# #"###""""""" ##? | | [ ##??# % """""" " "" ## | | ###???#" @ % %%"" """ " # | | "###?????#### " " | | ##??????????## | | #????????????## # | | ??????????????#### | | ??????????????# # | | ??????????????######" | | ???????????????????#"" """""" | | ???????????????????#" ######""" | | ???????????????????"" ""##????#####"" | | ??????????????????#""" % """##?????????##" | | ??????????????????"" """##???????????#" | | ??????????????????? ""#????????????#" | | ??????????????????? % ##????????????"" | | ?????????????????? !% ????????????? | | ??????????????????" % ???????????? | | ???????????????????"" ??????????? | | ????????????????????""" ??????????? | | ??????????????????????? ???????????? | | ????????????????????????? ???????????? "" | | ???????????????????????????? ???????????????"" | | ?????????????????????????????????????????????????# | | ?????????????????????????????????????????????????? | | ?????????????????????????????????????????????????? | | ?????????????????????????????????????????????????? | +----------------------------------------------------+ Best States ------------- Heat Dissipation 28 Energy Generation 16 Energy Capacity 290 Matter Stores 300 Matter Capacity 300 Sight Range 16 Terrain Scan Density 10 Armor Coverage 400 Core Shielding 20 Evasion (%) 50 Recoil Reduction 2 Matter Filtering 30 Item Schematics ----------------- None Robot Schematics ------------------ None Fabricated ------------ Nothing Repaired ---------- Nothing Studied --------- None Alien Tech Used ----------------- None Achievements -------------- None Challenges ------------ None Game ------ Seed DisruptorAbsorptionClaw Manual? 0 Play Time 00:13:10 Cumulative 227.2 hours Start 2026.01.11 @ 19:27:49 End 2026.01.11 @ 19:40:20 Sessions 1 Manual Loads 0 Difficulty Rogue Special Mode None Game No. 636 Rogue 635 Adventurer 1 Explorer 0 Win Type - Total 0 Types 0/0/0/0/0/0/0/0/0/0 Lore% 65 Gallery% 63 Achievement% 39 Wizard Run 0 Options --------- Layout 1 ASCII 0 Keyboard 0 Movement Mouse Keybinds 0 Fullscreen 1 Font 24/Smallcaps Map View 50x35 Zoom Use 0% Tactical HUD 0 Map Filters NONE Filters NONE Steam 1 RUN: f80f341e-ae44-4ac2-b7a6-01fa2fbd2b03